Cogmind - Beta 15 --- EXPLORER MODE // 2025.06.19 @ 16:33:23 // Winter2019/RPGLIKE Player: User15V Result: Self-destructed Performance ------------- Evolutions (2) 1000 Regions Visited (4) 800 Robots Destroyed (58) 290 Value Destroyed (1557) 1557 Prototype IDs (11) 220 Alien Tech Used (0) 0 Bonus (0) 0 TOTAL SCORE: 3867 Bonus ------- None Cogmind --------- Core Integrity 600/600 Matter 500/500 Energy 130/160 System Corruption 0% Temperature Cool (14) Movement Rolling (95) Ox1 Location -8/Materials Parts ------- > --- POWER (1+1) ------ Light Nuclear Core > --- PROPULSION (2) --- Wheel Wheel > --- UTILITY (4) ------ High-capacity Matter Pod Improved Terrain Scanner Terrain Scan Processor Makeshift Light Armor Plating > --- WEAPON (2) ------- Powered Cannon > --- INVENTORY (3) ---- Mini Grenade Launcher Katana Peak State ------------ > --- POWER ------------ Light Nuclear Core > --- PROPULSION ------- Wheel Wheel > --- UTILITY ---------- High-capacity Matter Pod Improved Terrain Scanner Terrain Scan Processor Makeshift Light Armor Plating > --- WEAPON ----------- Powered Cannon > --- INVENTORY -------- Mini Grenade Launcher [Rating: 29] Favorites ----------- Power Light Nuclear Core Engine Light Ion Engine Power Core Light Nuclear Core Propulsion Wheel Leg Aluminum Leg Wheel Wheel Utility Improved Terrain Scanner Device Improved Terrain Scanner Storage High-capacity Matter Pod Processor Terrain Scan Processor Protection Makeshift Light Armor Plating Weapon Light Cannon Energy Cannon Subdweller Beam Cannon Ballistic Gun Assault Rifle Ballistic Cannon Light Cannon Special Weapon Mining Laser Build | -11 -10 -10 -10 -8 ------- Run | Yrd Mat Min Sub Mat Slots Evolved 5 | 5 . . . . Power . | . . . . . Propulsion 1 | 1 . . . . Utility 3 | 3 . . . . Weapon 1 | 1 . . . . Parts Attached 21 | 9 8 1 2 1 Power 2 | 1 1 . . . Engine 1 | 1 . . . . Core 1 | . 1 . . . Reactor . | . . . . . Propulsion 5 | 4 1 . . . Treads . | . . . . . Leg 2 | 2 . . . . Wheel 3 | 2 1 . . . Hover . | . . . . . Flight . | . . . . . Utility 7 | 2 4 . 1 . Device 2 | 2 . . . . Storage 1 | . 1 . . . Processor 2 | . 2 . . . Hackware . | . . . . . Protection 2 | . 1 . 1 . Artifact . | . . . . . Weapon 7 | 2 2 1 1 1 Energy Gun . | . . . . . Energy Cannon 2 | . . . 1 1 Ballistic Gun 2 | 2 . . . . Ballistic Cannon 2 | . 2 . . . Launcher . | . . . . . Special Weapon 1 | . . 1 . . Impact Weapon . | . . . . . Slashing Weapon . | . . . . . Piercing Weapon . | . . . . . Special Melee Weapon . | . . . . . Unidentified Prototypes . | . . . . . Parts Lost . | . . . . . Power . | . . . . . Propulsion . | . . . . . Utility . | . . . . . Weapon . | . . . . . Highest Loss Streak . | . . . . . To Critical Strikes . | . . . . . Average Backups 2 | 1 2 3 2 1 Power . | . . . . . Propulsion . | . . . . . Utility . | . . . . . Weapon 2 | . 2 3 2 1 Tool/Special . | . . . . . Unused Backups 6 | . 3 . 1 2 Power 1 | . 1 . . . Propulsion . | . . . . . Utility . | . . . . . Weapon 5 | . 2 . 1 2 Tool/Special . | . . . . . Average Slot Usage (%) 97 | . 98 100 100 82 Core 10 | . 7 11 11 10 Wheel 21 | . 22 22 22 20 Device 11 | . 12 11 11 10 Storage 10 | . 10 11 11 10 Processor 10 | . 9 11 11 10 Protection 10 | . 10 11 11 10 Energy Cannon 4 | . . . 4 10 Ballistic Gun 1 | . 11 . . . Ballistic Cannon 14 | . 10 21 17 1 Peak Build Rating 29 | 9 14 14 19 29 Average Rating 17 | 4 13 14 16 28 On Entrance 11 | . 9 14 14 19 Naked Turns . | . . . . . Heaviest Build 25 | 9 19 19 25 25 Greatest Support 26 | 26 26 20 20 20 Greatest Overweight (x) 1 | . . . 1 1 Average Overweight (x) . | . . . . 1 Largest Inventory Capacity 3 | 3 3 3 3 3 Average Capacity 2 | 2 3 3 3 3 Most Carried 3 | 3 3 3 3 3 Average Carried 2 | 1 2 3 2 1 Final Capacity 3 | 3 3 3 3 3 Final Carried 3 | 1 3 3 3 2 Class Distribution -------------------- 94% | Scavenger-Mutant 5% | Hacker-Mutant Dominant Class ---------------- Scavenger-Mutant | -10/Materials Scavenger-Mutant | -10/Mines Scavenger-Mutant | -10/Subcaves Scavenger-Mutant | -8/Materials Resources | -11 -10 -10 -10 -8 ----------- Run | Yrd Mat Min Sub Mat Matter Collected 1335 | 294 576 11 444 10 Remotely . | . . . . . Salvage Created 1322 | 94 457 . 348 423 Parts 109 | 7 32 . 45 25 Haulers Intercepted 1 | . 1 . . . Recyclers Shooed . | . . . . . Parts Field Recycled . | . . . . . Retrieved Matter . | . . . . . Parts Self-Destructed . | . . . . . Prevented . | . . . . . Kills | -11 -10 -10 -10 -8 ------- Run | Yrd Mat Min Sub Mat Combat Hostiles Destroyed 37 | . 7 1 19 10 Guns 6 | . 6 . . . Cannons 29 | . 1 1 19 8 Classes Destroyed 14 | 2 6 1 4 1 Worker 7 | . 6 . . 1 Builder 1 | . 1 . . . Tunneler 3 | 2 1 . . . Hauler 1 | . 1 . . . Recycler 3 | 1 2 . . . Turret 2 | . . . 2 . Watcher 5 | . 2 . . 3 Swarmer 7 | . 2 . 5 . Grunt 13 | . 5 . 2 6 Sentry 4 | . . . 1 3 Hunter 1 | . . . . 1 Cobbler 1 | . . . 1 . Subdweller 11 | . . . 11 . Assembled 1 | . . 1 . . Best Kill Streak 7 | 2 4 1 5 7 Combat Bots Only 7 | . 2 1 3 7 Max Kills in Single Turn 3 | 1 1 1 1 3 Gunslinging . | . . . . . Exploded . | . . . . . Melee . | . . . . . Uniques/NPCs Destroyed . | . . . . . Combat | -11 -10 -10 -10 -8 -------- Run | Yrd Mat Min Sub Mat Hostile Shots Fired 168 | . 27 11 111 19 Missed 60 | . 9 5 36 10 Hits 108 | . 18 6 75 9 Melee 2 | . . 2 . . Projectile 106 | . 18 4 75 9 AOE 9 | . . . 9 . Critical Strikes 2 | . 1 . 1 . Damage Taken 1310 | . 164 60 997 89 Core 970 | . 117 44 749 60 Absorbed by Shields . | . . . . . Redirected to Core 693 | . 83 44 506 60 Ignored by Resistances 766 | . 107 37 568 54 Core Remaining (%) 82 | 100 . . 65 . Volleys Fired 147 | 6 43 5 65 28 Largest 2 | 2 2 2 2 1 Hottest 110 | 40 60 100 110 40 Shots Fired 244 | 12 86 8 110 28 Gun 52 | 12 40 . . . Cannon 190 | . 46 6 110 28 Launcher . | . . . . . Special 2 | . . 2 . . Kinetic 193 | 12 86 6 89 . Thermal 51 | . . 2 21 28 Explosive . | . . . . . Electromagnetic . | . . . . . Robot Hit Streak 27 | 9 27 10 21 22 Robot Miss Streak 4 | . 4 1 2 1 Penetration Max . | . . . . . Secondary Targets 1 | . 1 . . . Max Gunslinging Chain 1 | . 1 . . . Shots Hit Robots 188 | 9 69 5 81 24 Core Hits 75 | 4 26 1 33 11 Critical Kills 3 | . 1 . . 2 Critical Parts Destroyed . | . . . . . Critical Strikes 10 | . 4 1 3 2 Meltdown 2 | . . . . 2 Destroy 1 | . 1 . . . Blast 7 | . 3 1 3 . Melee Attacks . | . . . . . Impact . | . . . . . Slashing . | . . . . . Piercing . | . . . . . Sneak Attacks . | . . . . . Combat Hostiles . | . . . . . Follow-up Attacks . | . . . . . Damage Inflicted 4194 | 104 1037 86 1582 1385 Guns 498 | 104 394 . . . Cannons 3467 | . 643 86 1576 1162 Explosions 223 | . . . . 223 Melee . | . . . . . Ramming 6 | . . . 6 . Kinetic 2491 | 104 1037 86 1264 . Thermal 1697 | . . . 312 1385 Explosive . | . . . . . Electromagnetic . | . . . . . Impact . | . . . . . Slashing . | . . . . . Piercing . | . . . . . Highest Corruption . | . . . . . Average Corruption . | . . . . . Corruption Purged . | . . . . . Corruption Blocked . | . . . . . Overload Shots . | . . . . . Overflow Damage 61 | . 8 4 13 36 Projectiles 41 | . 8 4 13 16 Explosions 20 | . . . . 20 Melee . | . . . . . Knockbacks 21 | . 12 2 7 . Impact 1 | . . . 1 . Kinetic 20 | . 12 2 6 . Secondary . | . . . . . Self-Inflicted Damage 3 | . . . 3 . Shots . | . . . . . Rammed 1 | . . . 1 . Targets Rammed 1 | . . . 1 . Kicked . | . . . . . Crushed . | . . . . . Highest Temperature 208 | . 87 65 208 78 Average Temperature 34 | . 23 25 61 30 Received Heat Transfer 667 | . 120 . 493 54 Siege Activations . | . . . . . Martial Activations . | . . . . . Shielding Activations . | . . . . . Robots Disrupted . | . . . . . Combat Hostiles . | . . . . . Robots Corrupted . | . . . . . Combat Hostiles . | . . . . . Parts Fried . | . . . . . Impact Corruptions . | . . . . . Robots Melted 2 | . . . . 2 Combat Hostiles 2 | . . . . 2 Parts Melted 3 | . . . . 3 Heat Transferred 557 | . . . 407 150 Parts Sabotaged . | . . . . . Parts Stolen . | . . . . . Parts Stripped . | . . . . . Power Chain Reactions . | . . . . . Alert | -11 -10 -10 -10 -8 ------- Run | Yrd Mat Min Sub Mat Maximum Alert Level . | . . . . . Low Security (%) 100 | 100 100 100 . 100 Level 1 . | . . . . . Level 2 . | . . . . . Level 3 . | . . . . . Level 4 . | . . . . . Level 5 . | . . . . . High Security . | . . . . . Max Security . | . . . . . Peak Influence 111 | 5 86 . . 111 Initial 2 | . 2 . . . Average 20 | 1 27 . . 26 Influence Increases 790 | 15 242 . 235 298 Destroy 0b10 Robot/C 540 | . 140 . 200 200 Destroy 0b10 Robot/NC 100 | 15 65 . . 20 Destroy Leader 112 | . 36 . 20 56 Disable Machine 12 | . . . . 12 Destroy Structure 11 | . 1 . . 10 Lose Combat Pursuer 15 | . . . 15 . Influence Decreases 716 | 10 247 . 235 224 Entered New Map 3 | . 3 . . . Time Decay 713 | 10 244 . 235 224 Squads Dispatched 1 | . . . . 1 Investigation . | . . . . . Extermination . | . . . . . Reinforcement 1 | . . . . 1 Assault . | . . . . . Garrison . | . . . . . Intercept . | . . . . . Searches Triggered . | . . . . . Construction Impeded . | . . . . . Haulers Reinforced . | . . . . . Active Scanning Responses . | . . . . . Cargo Convoy Interrupts . | . . . . . Stealth | -11 -10 -10 -10 -8 --------- Run | Yrd Mat Min Sub Mat Distress Signals 1 | . . . . 1 Communications Jammed . | . . . . . Distress Signals . | . . . . . Times Spotted 62 | . 11 13 21 17 Peak Tracking Total 19 | . 2 19 4 5 Tactical Retreats 2 | . . 1 1 . Traps | -11 -10 -10 -10 -8 ------- Run | Yrd Mat Min Sub Mat Traps Triggered 2 | . 1 . 1 . Indirectly . | . . . . . Trap Hack Attempts . | . . . . . Triggered . | . . . . . Disarmed . | . . . . . Reprogrammed . | . . . . . Reused . | . . . . . Traps Extracted . | . . . . . Installed . | . . . . . Triggered . | . . . . . Machines | -11 -10 -10 -10 -8 ---------- Run | Yrd Mat Min Sub Mat Machines Disabled 6 | . . . 3 3 Max in Single Turn 3 | . . . 1 3 Machines Repaired . | . . . . . Machines Dismantled . | . . . . . Machines Sabotaged . | . . . . . Overloaded Fab Kills . | . . . . . Hacking | -11 -10 -10 -10 -8 --------- Run | Yrd Mat Min Sub Mat Machines Accessed 3 | . . . 2 1 Terminals 1 | . . . . 1 Fabricators . | . . . . . Repair Stations . | . . . . . Recycling Units . | . . . . . Scanalyzers . | . . . . . Garrison Access . | . . . . . Total Hacks 6 | . . . 5 1 Successful 6 | . . . 5 1 Failed . | . . . . . Catastrophic . | . . . . . Database Lockouts . | . . . . . Manual . | . . . . . Terminals 1 | . . . . 1 Fabricators . | . . . . . Repair Stations . | . . . . . Recycling Units . | . . . . . Scanalyzers . | . . . . . Garrison Access . | . . . . . Terminal Hacks 6 | . . . 5 1 Record 4 | . . . 4 . Branch Access Points 1 | . . . . 1 Proto ID Catalog 1 | . . . 1 . Fabricator Hacks . | . . . . . Repair Station Hacks . | . . . . . Recycling Unit Hacks . | . . . . . Scanalyzer . | . . . . . Garrison Access Hacks . | . . . . . Unauthorized Hacks . | . . . . . Terminals . | . . . . . Fabricators . | . . . . . Repair Stations . | . . . . . Recycling Units . | . . . . . Scanalyzers . | . . . . . Garrison Access . | . . . . . Data Cores Recovered . | . . . . . Used . | . . . . . Hacking Detections 1 | . . . . 1 Full Trace Events . | . . . . . Feedback Events . | . . . . . Feedback Blocked . | . . . . . Robot Schematics Acquired . | . . . . . Robots Built . | . . . . . Authchips . | . . . . . Time . | . . . . . Total Robot Build Rating . | . . . . . Part Schematics Acquired . | . . . . . Parts Built . | . . . . . Authchips . | . . . . . Time . | . . . . . Total Part Build Rating . | . . . . . Parts Repaired . | . . . . . Time . | . . . . . Parts Recycled . | . . . . . Recycled Matter . | . . . . . Retrieved Matter . | . . . . . Retrieved Components . | . . . . . Parts Scanalyzed . | . . . . . Part Schematics Acquired . | . . . . . Parts Damaged . | . . . . . Bothacking | -11 -10 -10 -10 -8 ------------ Run | Yrd Mat Min Sub Mat Used RIF Installer . | . . . . . Robots Hacked . | . . . . . Non-combat . | . . . . . Combat . | . . . . . Robot Hacks Applied . | . . . . . Relay Couplers Released . | . . . . . Fabnet Peak Effective % . | . . . . . Robots Rewired . | . . . . . Allies Hacked . | . . . . . Hacks Repelled . | . . . . . Allies | -11 -10 -10 -10 -8 -------- Run | Yrd Mat Min Sub Mat Total Allies . | . . . . . Largest Group . | . . . . . Highest-Rated Group . | . . . . . Highest-Rated Ally . | . . . . . Total Orders . | . . . . . Ally Attacks . | . . . . . Total Damage . | . . . . . Kills . | . . . . . Allies Corrupted . | . . . . . Allies Melted . | . . . . . Intel | -11 -10 -10 -10 -8 ------- Run | Yrd Mat Min Sub Mat Active Infowar (turns) 4125 | 62 473 255 2768 567 Optics 404 | . 404 . . . Terrain 4064 | 1 473 255 2768 567 Seismic 102 | 62 40 . . . Robot Analysis Total . | . . . . . Derelict Logs Recovered 2 | . . . 2 . Drone Launches . | . . . . . Drone Recoveries . | . . . . . Exploration | -11 -10 -10 -10 -8 ------------- Run | Yrd Mat Min Sub Mat Turns Passed 4166 | 92 473 255 2779 567 Spaces Moved 2599 | 51 374 169 1769 236 Core 6 | 6 . . . . Treads . | . . . . . Legs 39 | 39 . . . . Wheels 2554 | 6 374 169 1769 236 Hover . | . . . . . Flight . | . . . . . Fastest Speed 50 | 50 80 80 80 95 Average Speed 86 | 108 83 80 86 95 Slowest Speed 120 | 120 90 80 95 95 Overloaded Moves . | . . . . . Propulsion Burnouts . | . . . . . Robots Hopped . | . . . . . Potential Cave-ins . | . . . . . Cave-ins Triggered . | . . . . . Exploration Rate (%) 48 | 4 74 42 91 31 Regions Visited 4 Branch Regions 2 Pre-discovered Areas 3 | . . . 3 . Known Exits Taken 4 | 1 1 1 1 . Unknown Exits Taken . | . . . . . Scrap Searched 3 | . . . 3 . Spaces Dug 1 | . . . . 1 Terrain Destroyed 10 | . . . . 10 Melee . | . . . . . Projectile 3 | . . . . 3 AOE 7 | . . . . 7 Terrain Rammed . | . . . . . Walls Destroyed . | . . . . . Machines Disabled . | . . . . . Actions | -11 -10 -10 -10 -8 --------- Run | Yrd Mat Min Sub Mat Total 4266 | 76 451 276 2906 557 Wait 1403 | . . 102 1031 270 Move 2595 | 50 373 168 1768 236 Hop . | . . . . . Pick Up 22 | 9 9 . 3 1 Fast Attach 4 | 1 3 . . . Attach 13 | 8 4 . . 1 Detach . | . . . . . Swap 5 | . 1 1 3 . Drop 17 | 2 8 . 5 2 Fire 147 | 6 43 5 65 28 Melee . | . . . . . Ram 1 | . . . 1 . Kick . | . . . . . Crush . | . . . . . Escape Stasis . | . . . . . Rewire . | . . . . . Trap . | . . . . . Miscellaneous 59 | . 10 . 30 19 Route ------- -11/Scrapyard -10/Materials (discovered 3 exits: *Mat x2 / *Min) -10/Mines (discovered 2 exits: Mat / *Sub) -10/Subcaves (discovered 3 exits: *Mat x2 / *Rec) -8/Materials (discovered 1 exit: *Fac) History --------- Turn | Location | Event 6 | -11/Scrapyard | Identified exit to Materials 6 | -11/Scrapyard | Discovered exit to Materials (range 15) 10 | -11/Scrapyard | Upgraded with Propulsion slot (x1) 10 | -11/Scrapyard | Upgraded with Utility slot (x3) 10 | -11/Scrapyard | Upgraded with Weapon slot (x1) 93 | -11/Scrapyard | Entered Materials 230 | -10/Materials | Identified exit to Mines 230 | -10/Materials | Discovered exit to Mines (range 10) 288 | -10/Materials | Identified exit to Materials 288 | -10/Materials | Discovered exit to Materials (range 17) 372 | -10/Materials | Discovered exit to Materials (range 18) 559 | -10/Materials | Build established: Scavenger-Mutant 566 | -10/Materials | Entered Mines 606 | -10/Mines | Discovered exit to Materials (range 10) 800 | -10/Mines | Assembled infested the area 805 | -10/Mines | Assisted by a Guerilla fighting off Assembled 808 | -10/Mines | Identified exit to Subcaves 808 | -10/Mines | Discovered exit to Subcaves (range 7) 821 | -10/Mines | Entered Subcaves 822 | -10/Subcaves | Learned location of Zion (-7) 823 | -10/Subcaves | Reached level 2 963 | -10/Subcaves | A swath of the cavern ceiling suddenly collapsed 1042 | -10/Subcaves | Identified exit to Materials 1042 | -10/Subcaves | Discovered exit to Materials (range 8) 1416 | -10/Subcaves | Identified exit to Recycling 1416 | -10/Subcaves | Discovered exit to Recycling (range 16) 1941 | -10/Subcaves | Visited Clippyterm 1944 | -10/Subcaves | Learned Research machine intel 2068 | -10/Subcaves | Met a Zionite searching for "candidates" 2157 | -10/Subcaves | Reached level 3 2323 | -10/Subcaves | Ambushed by Subdweller buried in earth 2326 | -10/Subcaves | Core integrity fell below 50% 2342 | -10/Subcaves | Discovered exit to Materials (range 15) 2378 | -10/Subcaves | Learned location of Mines (-9) 2455 | -10/Subcaves | Shifting Twisted Machinery released Mak. Hammer 2455 | -10/Subcaves | Shifting Twisted Machinery released Sub. Beam Cannon 2806 | -10/Subcaves | Visited 4L-MR0's lab 2815 | -10/Subcaves | Found Powered Cannon 2991 | -10/Subcaves | Ambushed by Subdwellers from Twisted Machinery 3542 | -10/Subcaves | Shifting Twisted Machinery released Spk. Treads 3600 | -10/Subcaves | Entered Materials 3602 | -8/Materials | Reached level 4 3602 | -8/Materials | Reached level 5 3602 | -8/Materials | Reached level 6 3652 | -8/Materials | Attached Powered Cannon, gained temporary slot: Power 3903 | -8/Materials | Identified exit to Factory 3903 | -8/Materials | Discovered exit to Factory (range 16) 4030 | -8/Materials | Reached level 7 4081 | -8/Materials | Destroyed 7 combat bots 4167 | -8/Materials | Self-destructed Last Messages --------------- 04070_ K-01 Serf collects debris. 04072_ Used Protomatter to restore part integrity (+154, depleted) 04072_ K-01 Serf collects debris. 04076_ K-01 Serf cleans the Terminal. 04082_ Connecting with Terminal... 04083_ K-01 Serf cleans the Terminal. 04093_ Connecting with Terminal... >>Access(Branch) No branch access points found. 04164_ W-25 Informer distress signal alerts nearby ally. 04165_ Fusion Modulator explodes. 04165_ W-25 Informer destroyed. 04165_ Fusion Modulator explodes. 04165_ Terminal disabled. 04165_ W-25 Informer destroyed. 04165_ Destroyed Lgt. Ion Engine. 04165_ K-01 Serf destroyed. 04166_ U-05 Engineer lays Concrete. Map ----- +----------------------------------------------------+ | ?????????????????????????????????????????????????? | | ?????????????????????????????????????????????????? | | ?????????????????????????????????????????????????? | | ?????????????????????????????????????????????????? | | ?????????????????????????????????????????????????? | | ?????????????????????????????????????????????????? | | ?????????????????????????????????????????????????? | | ?????????????????????????????????????????????????? | | ????????????????????????????????#????????????????? | | ??????????????????????????? ##### "G" ???????????? | | ????????##? #?##?#??? ? ? ##### """ #?????????? | | ??????#?### ?#?#### ? ##### ##"???????? | | ????#??##?# ###?### #############" ??????? | | ???#??#?### ####### #############" ?????? | | ??#?####?## #?######+#################### ????? | | ? ######### ######## #########################???? | | ##?###### #####################???? | | ######## = ######################??? | | ?? ######################??? | | T %! ############### """ ?? | | #+?##### = ;############## ""?"" ?? | | ? ? ## ; ###### """"" ??? | | """ #T ; "" ###### """"" ?? | | ? """ ?# u= ; "" ##?### """ ?? | | """ ## % ; "T ###### #? | | ##% = [ @ "" ###### ?? | | "?" ## g = # "" ###?## ?? | | """ ## ###;; " " ### ###### ?? | | ?""" ## =############### ###########?##?? | | ##%=############### ##############?? | | ######### %####################################??? | | # ! ###################################??? | | +=%! !!##############################???? | | # % !!##############################???? | | # **#############################????? | | ## ## **############################?????? | | ## ## !!###########################??????? | | ## ## !!##########################???????? | | ## #############################?????????? | | ## ############################??????????? | | ###+##### ## #############???????????????? | | ### ##### ## ##############??????????????? | | ### ##### ## """ # #######?###???????????? | | % =#% """"" ##### ##?####??##???????????? | | * %%+%*""""" ##### ######?####??#????????? | | =#* """"" ############?######?#???????? | | #+######+#### """ ## ##########?###??????? | | # ## ## #########?#??##?????? | | # """ ## ## "" ###############?????? | | # """ ######+##### "Y ######?#########????? | +----------------------------------------------------+ Best States ------------- Heat Dissipation 25 Energy Generation 14 Energy Capacity 160 Matter Stores 500 Matter Capacity 500 Sight Range 18 Terrain Scan Range 16 Terrain Scan Density 585 Armor Coverage 150 Resistance: KI 35 Resistance: TH 35 Resistance: EX 35 Resistance: EM 35 Resistance: I 35 Resistance: S 35 Resistance: P 35 Evasion (%) 55 Offensive Hacking 20 Item Schematics ----------------- None Robot Schematics ------------------ None Fabricated ------------ Nothing Repaired ---------- Nothing Alien Tech Used ----------------- None Achievements -------------- None Challenges ------------ None RPGLIKE | -11 -10 -10 -10 -8 --------- Run | Yrd Mat Min Sub Mat Levels Raised 6 | . . . 2 4 XP Earned 15267 | 6000 850 500 2100 5817 XP Spent 5550 | 4900 . 650 . . Upgrades 13 | 8 . 5 . . Propulsion Slot 1 | 1 . . . . Utility Slot 3 | 3 . . . . Weapon Slot 1 | 1 . . . . Inventory Capacity 3 | 3 . . . . Terrain Scan Density 5 | . . 5 . . Protomatter Created 652 | . 138 6 249 259 Integrity Restored 1232 | . 169 . 641 422 Core 970 | . 101 . 601 268 Parts 262 | . 68 . 40 154 Protomatter Decayed 229 | . 76 6 33 114 Game ------ Seed TachyonDispersalProtection Manual? 0 Play Time 00:19:31 Cumulative 543.4 hours Start 2025.06.19 @ 16:13:41 End 2025.06.19 @ 16:33:23 Sessions 1 Manual Loads 0 Difficulty Explorer Special Mode Winter2019/RPGLIKE Game No. 229 Rogue 104 Adventurer 111 Explorer 14 Win Type - Total 39 Types 20/5/1/6/1/1/1/1/1/2 Lore% 89 Gallery% 94 Achievement% 94 Wizard Run 0 Options --------- Layout 2 ASCII 0 Keyboard 0 Movement Mouse Keybinds 0 Fullscreen 2 Font 24/Smallcaps Map View 50x44 Zoom Use 0% Tactical HUD 1 Map Filters NONE Filters NONE Steam 1 RUN: 0272ef76-ee39-4cba-a5c6-4e17f1c0980c